[Event "FIDE Women World Blitz 2021"]
[Site "Warsaw"]
[Date "2021.12.29"]
[Round "7.20"]
[White "Efroimski, Marsel"]
[Black "Majdan, Joanna"]
[Result "0-1"]
[ECO "B43"]
[WhiteElo "2419"]
[BlackElo "2325"]
[Annotator "NA"]
[PlyCount "46"]
[EventDate "2021.12.29"]
[EventType "swiss"]
[EventCountry "POL"]
[Tiebreak "Cut1 Buchholz"]
[SourceTitle "playchess.com"]
[Source "ChessBase"]
[SourceQuality "1"]
[TimeControl "180+2"]

1. e4 {[%emt 0:00:00]} c5 {[%emt 0:00:01]} 2. Nf3 {[%emt 0:00:01]} e6 {[%emt 0:
00:01]} 3. d4 {[%emt 0:00:01]} cxd4 {[%emt 0:00:01]} 4. Nxd4 {[%emt 0:00:01]}
a6 {[%emt 0:00:00]} 5. Nc3 {[%emt 0:00:02]} Qc7 {[%emt 0:00:03]} 6. a3 {
[%emt 0:00:01]} d6 {[%emt 0:00:02]} 7. f4 {[%emt 0:00:02]} Nf6 {[%emt 0:00:02]}
8. Qf3 {[%emt 0:00:02]} Be7 {[%emt 0:00:02]} 9. g4 {[%emt 0:00:05]} Nc6 {
[%emt 0:00:05]} 10. Nxc6 {[%emt 0:00:13]} Qxc6 {[%emt 0:00:04]} 11. g5 {
[%emt 0:00:00]} Nd7 {[%emt 0:00:01]} 12. Be3 {[%emt 0:00:09]} b5 {[%emt 0:00:
03]} 13. O-O-O {[%emt 0:00:53]} Bb7 {[%emt 0:00:01]} 14. h4 {[%emt 0:00:17]}
Rc8 {[%emt 0:00:03]} 15. Kb1 {[%emt 0:00:03]} Nc5 {[%emt 0:00:08]} 16. Bd3 {
[%emt 0:00:44]} Nxd3 17. cxd3 {[%emt 0:00:01]} a5 {[%emt 0:00:37]} 18. Rc1 {
[%emt 0:00:00]} Qa6 {[%emt 0:00:07]} 19. Bd4 {[%emt 0:00:16]} O-O {[%emt 0:00:
15]} 20. Na2 {[%emt 0:00:03]} d5 {[%emt 0:00:13]} 21. h5 {[%emt 0:00:09]} b4 {
[%emt 0:00:13]} 22. a4 {[%emt 0:00:02]} dxe4 {[%emt 0:00:13]} 23. dxe4 {
[%emt 0:00:01]} Rc4 {[%emt 0:00:04]} 0-1

[Event "FIDE Women World Blitz 2021"]
[Site "Warsaw"]
[Date "2021.12.29"]
[Round "7.21"]
[White "Serikbay, Assel"]
[Black "Muzychuk, Anna"]
[Result "0-1"]
[ECO "A87"]
[WhiteElo "2237"]
[BlackElo "2533"]
[Annotator "ChessBase"]
[PlyCount "92"]
[EventDate "2021.12.29"]
[EventType "swiss"]
[EventCountry "POL"]
[Tiebreak "Cut1 Buchholz"]
[SourceTitle "playchess.com"]
[Source "ChessBase"]
[SourceQuality "1"]
[TimeControl "180+2"]

1. d4 {[%emt 0:00:01]} f5 {[%emt 0:00:00]} 2. c4 {[%emt 0:00:02]} Nf6 {[%emt 0:
00:01]} 3. g3 {[%emt 0:00:02]} g6 {[%emt 0:00:01]} 4. Bg2 {[%emt 0:00:01]} Bg7
{[%emt 0:00:01]} 5. Nf3 {[%emt 0:00:03]} O-O {[%emt 0:00:01]} 6. O-O {[%emt 0:
00:02]} d6 7. d5 {[%emt 0:00:02]} a5 {[%emt 0:00:07]} 8. Nc3 {[%emt 0:00:03]}
Na6 {[%emt 0:00:01]} 9. Nd4 {[%emt 0:00:22]} Nc5 {[%emt 0:00:07]} 10. Rb1 {
[%emt 0:00:01]} Bd7 {[%emt 0:00:13]} 11. b3 {[%emt 0:00:04]} Nfe4 {[%emt 0:00:
06]} 12. Bb2 {[%emt 0:00:04]} c6 {[%emt 0:00:05]} 13. Nxe4 {[%emt 0:00:29]}
Nxe4 {[%emt 0:00:03]} 14. f3 {[%emt 0:00:54]} Nf6 {[%emt 0:00:08]} 15. e4 {
[%emt 0:00:02]} fxe4 {[%emt 0:00:22]} 16. fxe4 {[%emt 0:00:01]} Ng4 {[%emt 0:
00:18]} 17. Qd2 {[%emt 0:00:11]} Qb6 {[%emt 0:00:07]} 18. Kh1 {[%emt 0:00:09]}
Bh6 {[%emt 0:00:25]} 19. Qc3 {[%emt 0:00:04]} Bg7 {[%emt 0:00:24]} 20. Qd2 {
[%emt 0:00:01]} Ne5 {[%emt 0:00:25]} 21. Ne2 {[%emt 0:00:01]} a4 {[%emt 0:00:
11]} 22. Bd4 {[%emt 0:00:02]} c5 {[%emt 0:00:08]} 23. Bc3 {[%emt 0:00:06]}
Rxf1+ {[%emt 0:00:04]} 24. Rxf1 {[%emt 0:00:26]} axb3 {[%emt 0:00:01]} 25. axb3
{[%emt 0:00:01]} Qxb3 {[%emt 0:00:02]} 26. Bxe5 {[%emt 0:00:16]} Bxe5 {[%emt 0:
00:02]} 27. Nf4 {[%emt 0:00:13]} Ra2 {[%emt 0:00:06]} 28. Qd3 {[%emt 0:00:04]}
Qxd3 {[%emt 0:00:10]} 29. Nxd3 {[%emt 0:00:01]} Bd4 {[%emt 0:00:01]} 30. Rb1 {
[%emt 0:00:04]} Ra1 {[%emt 0:00:01]} 31. Rxa1 {[%emt 0:00:01]} Bxa1 {[%emt 0:
00:01]} 32. Bf1 {[%emt 0:00:04]} b5 {[%emt 0:00:03]} 33. Nc1 {[%emt 0:00:07]}
b4 {[%emt 0:00:02]} 34. Bd3 {[%emt 0:00:03]} Kg7 {[%emt 0:00:04]} 35. Kg2 {
[%emt 0:00:00]} Kf6 {[%emt 0:00:01]} 36. Kf3 {[%emt 0:00:02]} Ba4 {[%emt 0:00:
03]} 37. Bb1 {[%emt 0:00:01]} Ke5 {[%emt 0:00:04]} 38. Ke3 {[%emt 0:00:02]}
Bd4+ {[%emt 0:00:02]} 39. Kf3 {[%emt 0:00:01]} Bd1+ {[%emt 0:00:01]} 40. Kg2 {
[%emt 0:00:01]} b3 {[%emt 0:00:02]} 41. Nd3+ {[%emt 0:00:01]} Kf6 {[%emt 0:00:
02]} 42. Kf1 {[%emt 0:00:04]} Bc2 {[%emt 0:00:09]} 43. Bxc2 {[%emt 0:00:01]}
bxc2 {[%emt 0:00:01]} 44. Ke2 {[%emt 0:00:01]} Bb2 {[%emt 0:00:01]} 45. Kd2 {
[%emt 0:00:01]} c1=Q+ {[%emt 0:00:02]} 46. Nxc1 {[%emt 0:00:02]} Bxc1+ {
[%emt 0:00:01]} 0-1

[Event "FIDE Women World Blitz 2021"]
[Site "Warsaw"]
[Date "2021.12.29"]
[Round "7.22"]
[White "Michna, Marta"]
[Black "Strutinskaia, Galina"]
[Result "0-1"]
[ECO "A06"]
[WhiteElo "2312"]
[BlackElo "2188"]
[Annotator "NA"]
[PlyCount "92"]
[EventDate "2021.12.29"]
[EventType "swiss"]
[EventCountry "POL"]
[Tiebreak "Cut1 Buchholz"]
[SourceTitle "playchess.com"]
[Source "ChessBase"]
[SourceQuality "1"]
[TimeControl "180+2"]

1. Nf3 {[%emt 0:00:01]} d5 {[%emt 0:00:01]} 2. d3 {[%emt 0:00:02]} c6 {[%emt 0:
00:05]} 3. Nbd2 {[%emt 0:00:04]} Nd7 {[%emt 0:00:02]} 4. g3 {[%emt 0:00:07]} g6
{[%emt 0:00:01]} 5. Bg2 {[%emt 0:00:01]} Bg7 {[%emt 0:00:01]} 6. O-O {[%emt 0:
00:01]} e5 {[%emt 0:00:02]} 7. e4 {[%emt 0:00:03]} Ne7 {[%emt 0:00:06]} 8. a4 {
[%emt 0:00:04]} a5 {[%emt 0:00:02]} 9. Re1 {[%emt 0:00:19]} O-O {[%emt 0:00:02]
} 10. c3 {[%emt 0:00:05]} b6 {[%emt 0:00:07]} 11. Qc2 {[%emt 0:00:34]} Bb7 {
[%emt 0:00:03]} 12. Rb1 {[%emt 0:00:12]} Qc7 {[%emt 0:00:07]} 13. b3 {[%emt 0:
00:05]} Rfe8 {[%emt 0:00:03]} 14. Ba3 {[%emt 0:00:03]} b5 {[%emt 0:00:12]} 15.
exd5 {[%emt 0:00:20]} Nxd5 {[%emt 0:00:12]} 16. Ne4 {[%emt 0:00:12]} b4 {
[%emt 0:00:12]} 17. cxb4 {[%emt 0:00:05]} axb4 {[%emt 0:00:03]} 18. Bb2 {
[%emt 0:00:00]} h6 {[%emt 0:00:14]} 19. Ned2 {[%emt 0:00:06]} Nc3 {[%emt 0:00:
28]} 20. Bxc3 {[%emt 0:00:04]} bxc3 {[%emt 0:00:01]} 21. Ne4 {[%emt 0:00:01]}
Ba6 {[%emt 0:00:10]} 22. Rbd1 {[%emt 0:00:10]} Rab8 {[%emt 0:00:03]} 23. Bf1 {
[%emt 0:00:13]} f5 {[%emt 0:00:12]} 24. Nxc3 {[%emt 0:00:01]} Nc5 {[%emt 0:00:
01]} 25. Rb1 {[%emt 0:00:05]} Kh7 {[%emt 0:00:10]} 26. b4 {[%emt 0:00:05]} Ne6
{[%emt 0:00:01]} 27. Bg2 {[%emt 0:00:13]} Qd6 {[%emt 0:00:09]} 28. b5 {[%emt 0:
00:02]} cxb5 {[%emt 0:00:06]} 29. Nxb5 {[%emt 0:00:02]} Bxb5 {[%emt 0:00:09]}
30. axb5 {[%emt 0:00:01]} Nc5 {[%emt 0:00:14]} 31. Red1 {[%emt 0:00:07]} Rec8 {
[%emt 0:00:06]} 32. Nd2 {[%emt 0:00:09]} Qxd3 {[%emt 0:00:06]} 33. Qxd3 {
[%emt 0:00:03]} Nxd3 {[%emt 0:00:02]} 34. Bc6 {[%emt 0:00:01]} e4 {[%emt 0:00:
06]} 35. Nc4 {[%emt 0:00:01]} Bd4 {[%emt 0:00:04]} 36. Kg2 {[%emt 0:00:06]} Bc5
{[%emt 0:00:07]} 37. f3 {[%emt 0:00:01]} exf3+ {[%emt 0:00:07]} 38. Kxf3 {
[%emt 0:00:02]} Nb4 {[%emt 0:00:01]} 39. Rd7+ {[%emt 0:00:02]} Kh8 {[%emt 0:00:
01]} 40. Ne5 {[%emt 0:00:03]} Nxc6 {[%emt 0:00:03]} 41. Nxg6+ {[%emt 0:00:08]}
Kg8 {[%emt 0:00:01]} 42. Re1 {[%emt 0:00:15]} Rxb5 {[%emt 0:00:02]} 43. Re6 {
[%emt 0:00:01]} Nd4+ {[%emt 0:00:05]} 44. Rxd4 {[%emt 0:00:01]} Bxd4 {[%emt 0:
00:01]} 45. Ne7+ {[%emt 0:00:02]} Kf7 {[%emt 0:00:01]} 46. Nxf5 {[%emt 0:00:05]
} Rxf5+ {[%emt 0:00:05]} 0-1

[Event "FIDE Women World Blitz 2021"]
[Site "Warsaw"]
[Date "2021.12.29"]
[Round "7.23"]
[White "Kashlinskaya, Alina"]
[Black "Pavlidou, Ekaterini"]
[Result "1-0"]
[ECO "E32"]
[WhiteElo "2482"]
[BlackElo "2177"]
[Annotator "ChessBase"]
[PlyCount "125"]
[EventDate "2021.12.29"]
[EventType "swiss"]
[EventCountry "POL"]
[Tiebreak "Cut1 Buchholz"]
[SourceTitle "playchess.com"]
[Source "ChessBase"]
[SourceQuality "1"]
[TimeControl "180+2"]

1. d4 {[%emt 0:00:01]} Nf6 {[%emt 0:00:02]} 2. c4 {[%emt 0:00:02]} e6 {[%emt 0:
00:00]} 3. Nc3 {[%emt 0:00:02]} Bb4 {[%emt 0:00:01]} 4. Qc2 {[%emt 0:00:01]}
O-O {[%emt 0:00:05]} 5. a3 {[%emt 0:00:02]} Bxc3+ {[%emt 0:00:02]} 6. Qxc3 {
[%emt 0:00:02]} d6 {[%emt 0:00:06]} 7. Nf3 {[%emt 0:00:01]} h6 {[%emt 0:00:08]}
8. g3 {[%emt 0:00:04]} Ne4 {[%emt 0:00:17]} 9. Qc2 {[%emt 0:00:03]} f5 {
[%emt 0:00:01]} 10. Bg2 {[%emt 0:00:03]} Qf6 {[%emt 0:00:25]} 11. O-O {[%emt 0:
00:12]} Nc6 {[%emt 0:00:15]} 12. d5 {[%emt 0:00:07]} Ne7 {[%emt 0:00:10]} 13.
Nd2 {[%emt 0:00:18]} Nxd2 {[%emt 0:00:02]} 14. Bxd2 {[%emt 0:00:02]} e5 {
[%emt 0:00:01]} 15. c5 {[%emt 0:00:04]} g5 {[%emt 0:00:15]} 16. cxd6 {[%emt 0:
00:05]} cxd6 {[%emt 0:00:01]} 17. Rac1 {[%emt 0:00:13]} f4 {[%emt 0:00:04]} 18.
Qc7 {[%emt 0:00:43]} a5 {[%emt 0:00:18]} 19. Bxa5 {[%emt 0:00:15]} Bg4 {
[%emt 0:00:07]} 20. f3 {[%emt 0:00:13]} Nxd5 {[%emt 0:00:04]} 21. Qxb7 {
[%emt 0:00:06]} Rxa5 {[%emt 0:00:10]} 22. fxg4 {[%emt 0:00:04]} Ne3 {[%emt 0:
00:07]} 23. Be4 {[%emt 0:00:09]} Rf7 {[%emt 0:00:19]} 24. Rc8+ {[%emt 0:00:09]}
Kg7 {[%emt 0:00:02]} 25. Qb8 {[%emt 0:00:01]} Rf8 {[%emt 0:00:08]} 26. Rfc1 {
[%emt 0:00:05]} Rc5 {[%emt 0:00:11]} 27. R1xc5 {[%emt 0:00:05]} dxc5 {[%emt 0:
00:01]} 28. Rxf8 Qxf8 {[%emt 0:00:01]} 29. Qxe5+ {[%emt 0:00:03]} Qf6 {[%emt 0:
00:03]} 30. gxf4 {[%emt 0:00:10]} gxf4 {[%emt 0:00:05]} 31. Qc7+ {[%emt 0:00:
06]} Kg8 {[%emt 0:00:13]} 32. Qxc5 {[%emt 0:00:03]} Qh4 {[%emt 0:00:15]} 33.
Qc8+ {[%emt 0:00:04]} Kg7 {[%emt 0:00:02]} 34. Qc7+ {[%emt 0:00:04]} Kg8 {
[%emt 0:00:01]} 35. Qb8+ {[%emt 0:00:08]} Kg7 {[%emt 0:00:03]} 36. Qe5+ {
[%emt 0:00:01]} Kg8 {[%emt 0:00:03]} 37. Bd5+ {[%emt 0:00:02]} Nxd5 {[%emt 0:
00:01]} 38. Qxd5+ {[%emt 0:00:01]} Kg7 {[%emt 0:00:02]} 39. Qe5+ {[%emt 0:00:
02]} Kg8 {[%emt 0:00:00]} 40. Qxf4 {[%emt 0:00:08]} Qe1+ {[%emt 0:00:02]} 41.
Qf1 {[%emt 0:00:01]} Qd2 {[%emt 0:00:02]} 42. b4 {[%emt 0:00:05]} Qd4+ {
[%emt 0:00:01]} 43. Qf2 {[%emt 0:00:01]} Qa1+ {[%emt 0:00:00]} 44. Kg2 {
[%emt 0:00:01]} Qxa3 {[%emt 0:00:02]} 45. Qd4 {[%emt 0:00:02]} Qa8+ {[%emt 0:
00:02]} 46. e4 {[%emt 0:00:01]} Qa2+ {[%emt 0:00:01]} 47. Kg3 {[%emt 0:00:01]}
Qa3+ {[%emt 0:00:02]} 48. Kh4 {[%emt 0:00:02]} Qf3 {[%emt 0:00:08]} 49. Qd5+ {
[%emt 0:00:01]} Kg7 {[%emt 0:00:03]} 50. Qe5+ {[%emt 0:00:02]} Kg8 {[%emt 0:00:
00]} 51. Qf5 {[%emt 0:00:01]} Qe2 {[%emt 0:00:03]} 52. Qd5+ {[%emt 0:00:08]}
Kg7 {[%emt 0:00:01]} 53. Qe5+ {[%emt 0:00:01]} Kg8 {[%emt 0:00:01]} 54. b5 {
[%emt 0:00:01]} Qf2+ {[%emt 0:00:04]} 55. Kh5 {[%emt 0:00:05]} Qf7+ {[%emt 0:
00:02]} 56. Kh4 {[%emt 0:00:01]} Qf2+ {[%emt 0:00:00]} 57. Qg3 {[%emt 0:00:01]}
Qf6+ {[%emt 0:00:01]} 58. g5 {[%emt 0:00:01]} Qe7 {[%emt 0:00:04]} 59. Qg4 {
[%emt 0:00:08]} Kg7 {[%emt 0:00:02]} 60. Kh3 {[%emt 0:00:02]} Qa3+ {[%emt 0:00:
02]} 61. Qg3 {[%emt 0:00:01]} Qe7 {[%emt 0:00:04]} 62. gxh6+ {[%emt 0:00:02]}
Kxh6 {[%emt 0:00:01]} 63. Qh4+ {[%emt 0:00:01]} 1-0

[Event "FIDE Women World Blitz 2021"]
[Site "Warsaw"]
[Date "2021.12.29"]
[Round "7.24"]
[White "Zatonskih, Anna"]
[Black "Paramzina, Anastasya"]
[Result "1-0"]
[ECO "D85"]
[WhiteElo "2394"]
[BlackElo "2260"]
[Annotator "NA"]
[PlyCount "84"]
[EventDate "2021.12.29"]
[EventType "swiss"]
[EventCountry "POL"]
[Tiebreak "Cut1 Buchholz"]
[SourceTitle "playchess.com"]
[Source "ChessBase"]
[SourceQuality "1"]
[TimeControl "180+2"]

1. d4 {[%emt 0:00:01]} Nf6 {[%emt 0:00:00]} 2. c4 {[%emt 0:00:01]} g6 {[%emt 0:
00:01]} 3. Nc3 {[%emt 0:00:00]} d5 {[%emt 0:00:01]} 4. cxd5 {[%emt 0:00:02]}
Nxd5 {[%emt 0:00:01]} 5. Bd2 {[%emt 0:00:01]} c5 {[%emt 0:00:23]} 6. dxc5 {
[%emt 0:00:01]} Bg7 {[%emt 0:00:03]} 7. Rc1 {[%emt 0:00:01]} Nxc3 {[%emt 0:00:
22]} 8. Bxc3 {[%emt 0:00:01]} Bxc3+ {[%emt 0:00:01]} 9. Rxc3 {[%emt 0:00:01]}
Qxd1+ {[%emt 0:00:02]} 10. Kxd1 {[%emt 0:00:01]} O-O {[%emt 0:00:20]} 11. Nf3 {
[%emt 0:00:23]} Rd8+ {[%emt 0:00:01]} 12. Kc1 {[%emt 0:00:32]} Nc6 {[%emt 0:00:
22]} 13. a3 {[%emt 0:00:16]} a5 {[%emt 0:00:07]} 14. e3 {[%emt 0:00:06]} Bf5 {
[%emt 0:00:23]} 15. Bb5 {[%emt 0:00:29]} Be4 {[%emt 0:00:11]} 16. Rd1 {[%emt 0:
00:04]} Bxf3 {[%emt 0:00:16]} 17. gxf3 {[%emt 0:00:01]} Ne5 {[%emt 0:00:02]}
18. Be2 {[%emt 0:00:35]} Rdc8 {[%emt 0:00:30]} 19. f4 {[%emt 0:00:12]} Nc6 {
[%emt 0:00:01]} 20. Rd7 {[%emt 0:00:28]} Ra7 {[%emt 0:00:00]} 21. Bf3 {[%emt 0:
00:13]} Kf8 {[%emt 0:00:04]} 22. Rd2 {[%emt 0:00:04]} a4 {[%emt 0:00:01]} 23.
Bxc6 {[%emt 0:00:07]} Rxc6 {[%emt 0:00:02]} 24. Rd4 {[%emt 0:00:01]} Ra5 {
[%emt 0:00:16]} 25. Kd2 {[%emt 0:00:01]} Rb5 {[%emt 0:00:05]} 26. Rb4 {[%emt 0:
00:02]} Rbxc5 {[%emt 0:00:11]} 27. Rxc5 {[%emt 0:00:02]} Rxc5 {[%emt 0:00:00]}
28. Rxb7 {[%emt 0:00:00]} Rh5 {[%emt 0:00:02]} 29. Ra7 {[%emt 0:00:03]} Rxh2 {
[%emt 0:00:01]} 30. Ke2 {[%emt 0:00:00]} Rh1 {[%emt 0:00:05]} 31. Rxa4 {
[%emt 0:00:01]} h5 {[%emt 0:00:02]} 32. b4 {[%emt 0:00:01]} Rb1 {[%emt 0:00:02]
} 33. Kf3 {[%emt 0:00:01]} e6 {[%emt 0:00:03]} 34. Ra5 {[%emt 0:00:02]} Ke7 {
[%emt 0:00:01]} 35. b5 Kd6 {[%emt 0:00:02]} 36. a4 {[%emt 0:00:01]} Kc5 {
[%emt 0:00:03]} 37. Ra7 {[%emt 0:00:01]} f6 {[%emt 0:00:02]} 38. Ra6 {[%emt 0:
00:04]} Ra1 {[%emt 0:00:03]} 39. Rxe6 {[%emt 0:00:00]} Rxa4 {[%emt 0:00:02]}
40. Rxf6 {[%emt 0:00:01]} Kxb5 {[%emt 0:00:05]} 41. Rxg6 {[%emt 0:00:02]} Kc4 {
[%emt 0:00:02]} 42. Rh6 {[%emt 0:00:01]} Kd5 {[%emt 0:00:05]} 1-0

[Event "FIDE Women World Blitz 2021"]
[Site "Warsaw"]
[Date "2021.12.29"]
[Round "7.25"]
[White "Maisuradze, Nino"]
[Black "Cyfka, Karina"]
[Result "0-1"]
[ECO "E44"]
[WhiteElo "2175"]
[BlackElo "2416"]
[Annotator "NA"]
[PlyCount "128"]
[EventDate "2021.12.29"]
[EventType "swiss"]
[EventCountry "POL"]
[Tiebreak "Cut1 Buchholz"]
[SourceTitle "playchess.com"]
[Source "ChessBase"]
[SourceQuality "1"]
[TimeControl "180+2"]

1. d4 {[%emt 0:00:00]} Nf6 {[%emt 0:00:02]} 2. c4 {[%emt 0:00:00]} e6 {[%emt 0:
00:01]} 3. Nc3 {[%emt 0:00:03]} Bb4 {[%emt 0:00:04]} 4. e3 {[%emt 0:00:02]} O-O
{[%emt 0:00:04]} 5. Nge2 {[%emt 0:00:01]} b6 {[%emt 0:00:07]} 6. a3 {[%emt 0:
00:01]} Be7 {[%emt 0:00:06]} 7. d5 {[%emt 0:00:17]} Bb7 {[%emt 0:00:18]} 8. Ng3
{[%emt 0:00:13]} a5 {[%emt 0:00:12]} 9. b3 {[%emt 0:00:09]} Na6 {[%emt 0:00:10]
} 10. Bb2 {[%emt 0:00:02]} Re8 {[%emt 0:00:24]} 11. Be2 {[%emt 0:00:02]} Bf8 {
[%emt 0:00:09]} 12. O-O {[%emt 0:00:05]} d6 {[%emt 0:00:06]} 13. Bd3 {[%emt 0:
00:34]} g6 {[%emt 0:00:18]} 14. Bc2 {[%emt 0:00:17]} Bg7 {[%emt 0:00:01]} 15.
Rb1 {[%emt 0:00:05]} exd5 {[%emt 0:00:12]} 16. cxd5 {[%emt 0:00:13]} Nc5 {
[%emt 0:00:01]} 17. Re1 {[%emt 0:00:07]} Ncd7 {[%emt 0:00:13]} 18. e4 {[%emt 0:
00:03]} h5 {[%emt 0:00:11]} 19. Nge2 {[%emt 0:00:07]} Ne5 {[%emt 0:00:04]} 20.
f3 {[%emt 0:00:20]} Nfd7 {[%emt 0:00:08]} 21. Bc1 {[%emt 0:00:08]} Qe7 {
[%emt 0:00:11]} 22. Be3 {[%emt 0:00:10]} Ba6 {[%emt 0:00:01]} 23. b4 {[%emt 0:
00:11]} axb4 {[%emt 0:00:09]} 24. axb4 {[%emt 0:00:01]} Nc4 {[%emt 0:00:03]}
25. Bd4 {[%emt 0:00:05]} Nde5 {[%emt 0:00:07]} 26. b5 {[%emt 0:00:01]} Bc8 {
[%emt 0:00:03]} 27. Bb3 {[%emt 0:00:03]} Na5 {[%emt 0:00:03]} 28. Bf2 {[%emt 0:
00:16]} Bh6 {[%emt 0:00:03]} 29. Nd4 {[%emt 0:00:01]} Qf6 {[%emt 0:00:08]} 30.
Nce2 {[%emt 0:00:08]} Bd7 {[%emt 0:00:05]} 31. Nc6 {[%emt 0:00:03]} Nb7 {
[%emt 0:00:09]} 32. Ned4 {[%emt 0:00:03]} Nc5 {[%emt 0:00:02]} 33. Bc2 {
[%emt 0:00:01]} Ra2 {[%emt 0:00:03]} 34. Ra1 {[%emt 0:00:03]} Rxa1 {[%emt 0:00:
05]} 35. Qxa1 {[%emt 0:00:00]} Bd2 {[%emt 0:00:02]} 36. Rd1 {[%emt 0:00:02]}
Bh6 {[%emt 0:00:02]} 37. Qa7 {[%emt 0:00:04]} Rc8 {[%emt 0:00:03]} 38. Bg3 {
[%emt 0:00:06]} h4 {[%emt 0:00:01]} 39. Bf2 {[%emt 0:00:06]} h3 {[%emt 0:00:01]
} 40. Qa2 {[%emt 0:00:03]} hxg2 {[%emt 0:00:02]} 41. Kxg2 {[%emt 0:00:03]} Qg5+
{[%emt 0:00:04]} 42. Bg3 Qf6 {[%emt 0:00:03]} 43. Rf1 {[%emt 0:00:03]} Bf4 {
[%emt 0:00:01]} 44. Bd1 {[%emt 0:00:01]} Bxg3 {[%emt 0:00:01]} 45. hxg3 {
[%emt 0:00:00]} Ncd3 {[%emt 0:00:03]} 46. Qe2 {[%emt 0:00:04]} Nc5 {[%emt 0:00:
02]} 47. Rh1 {[%emt 0:00:01]} Kg7 {[%emt 0:00:01]} 48. f4 {[%emt 0:00:03]} Ned3
{[%emt 0:00:04]} 49. Kf1 {[%emt 0:00:02]} Rh8 {[%emt 0:00:02]} 50. Rxh8 {
[%emt 0:00:01]} Kxh8 {[%emt 0:00:00]} 51. Qh2+ {[%emt 0:00:01]} Kg7 {[%emt 0:
00:01]} 52. Be2 {[%emt 0:00:01]} Nc1 {[%emt 0:00:05]} 53. Ke1 {[%emt 0:00:02]}
Bxc6 {[%emt 0:00:01]} 54. bxc6 {[%emt 0:00:03]} Qxd4 {[%emt 0:00:02]} 55. f5 {
[%emt 0:00:03]} Qc3+ {[%emt 0:00:01]} 56. Kf1 {[%emt 0:00:02]} Nxe4 {[%emt 0:
00:01]} 57. f6+ {[%emt 0:00:03]} Qxf6+ {[%emt 0:00:01]} 58. Ke1 {[%emt 0:00:01]
} Nb3 {[%emt 0:00:02]} 59. g4 {[%emt 0:00:02]} Qa1+ 60. Bd1 Qc3+ {[%emt 0:00:
02]} 61. Kf1 {[%emt 0:00:02]} Nbd2+ {[%emt 0:00:03]} 62. Kg1 {[%emt 0:00:02]}
Qe3+ {[%emt 0:00:01]} 63. Kh1 {[%emt 0:00:02]} Qe1+ {[%emt 0:00:01]} 64. Qg1 {
[%emt 0:00:03]} Qxd1 {[%emt 0:00:05]} 0-1

[Event "FIDE Women World Blitz 2021"]
[Site "Warsaw"]
[Date "2021.12.29"]
[Round "7.26"]
[White "Bartel, Marta"]
[Black "Muetsch, Annmarie"]
[Result "0-1"]
[ECO "E61"]
[WhiteElo "2192"]
[BlackElo "2279"]
[Annotator "NA"]
[PlyCount "58"]
[EventDate "2021.12.29"]
[EventType "swiss"]
[EventCountry "POL"]
[Tiebreak "Cut1 Buchholz"]
[SourceTitle "playchess.com"]
[Source "ChessBase"]
[SourceQuality "1"]
[TimeControl "180+2"]

1. d4 {[%emt 0:00:01]} d6 {[%emt 0:00:00]} 2. Nf3 {[%emt 0:00:02]} g6 {[%emt 0:
00:03]} 3. Bg5 {[%emt 0:00:11]} Bg7 {[%emt 0:00:03]} 4. e3 {[%emt 0:00:01]} Nd7
{[%emt 0:00:02]} 5. Be2 {[%emt 0:00:05]} Ngf6 {[%emt 0:00:04]} 6. c4 {[%emt 0:
00:03]} e5 {[%emt 0:00:04]} 7. Nc3 {[%emt 0:00:04]} c6 {[%emt 0:00:20]} 8. O-O
{[%emt 0:00:03]} Qe7 {[%emt 0:00:01]} 9. Qc2 {[%emt 0:00:06]} O-O {[%emt 0:00:
12]} 10. Rad1 {[%emt 0:00:01]} h6 {[%emt 0:00:17]} 11. Bh4 {[%emt 0:00:01]} g5
{[%emt 0:00:01]} 12. Bg3 {[%emt 0:00:01]} Nh5 {[%emt 0:00:09]} 13. dxe5 {
[%emt 0:00:55]} Nxg3 {[%emt 0:00:02]} 14. hxg3 {[%emt 0:00:03]} dxe5 {[%emt 0:
00:09]} 15. a3 {[%emt 0:00:03]} f5 {[%emt 0:00:17]} 16. b4 {[%emt 0:00:02]} Nf6
{[%emt 0:00:14]} 17. c5 {[%emt 0:00:07]} e4 {[%emt 0:00:15]} 18. Nd4 {[%emt 0:
00:04]} Kh8 {[%emt 0:00:05]} 19. g4 {[%emt 0:00:12]} f4 {[%emt 0:00:03]} 20.
Nf5 {[%emt 0:00:31]} Bxf5 {[%emt 0:00:03]} 21. gxf5 {[%emt 0:00:02]} Qe5 {
[%emt 0:00:05]} 22. Rd6 {[%emt 0:00:26]} Qxf5 {[%emt 0:00:03]} 23. f3 {[%emt 0:
00:07]} fxe3 {[%emt 0:00:11]} 24. fxe4 {[%emt 0:00:05]} Qe5 {[%emt 0:00:02]}
25. Rf5 {[%emt 0:00:15]} Qg3 {[%emt 0:00:01]} 26. Qd1 {[%emt 0:00:05]} Nh7 {
[%emt 0:00:17]} 27. Rxf8+ {[%emt 0:00:15]} Rxf8 {[%emt 0:00:01]} 28. Qc2 {
[%emt 0:00:04]} Be5 {[%emt 0:00:09]} 29. Rxh6 {[%emt 0:00:03]} Qe1+ {[%emt 0:
00:06]} 0-1